bitfinex-derivatives/quotes_ETHF0:USTF0_20251031
["timestamp","ask_amount","ask_price","bid_price","bid_amount"]
[1761872298487,1.3858,3839.7,3839.6,1.37910554]
[1761872298686,1.3858,3839.7,3839.6,0.81180554]
[1761872298886,1.3858,3839.7,3839.6,0.40640554]
[1761872299093,1.3858,3839.7,3839.6,0.00330554]
[1761872302992,1.5759,3839.0,3838.9,3.2078]
[1761872303992,1.57822593,3839.0,3838.9,3.2106508]
[1761872304194,1.57822593,3839.0,3838.9,3.6137508]
[1761872304386,1.57822593,3839.0,3838.9,4.5864508]
[1761872304582,0.99882593,3839.0,3838.9,4.5864508]
[1761872304789,0.61892593,3839.0,3838.9,4.5864508]
[1761872304990,1.38812593,3839.0,3838.9,4.5864508]
[1761872305499,1.63672593,3839.0,3838.9,3.6137508]
[1761872306300,1.63672593,3839.0,3838.9,3.2106508]
[1761872306497,0.38222593,3839.0,3838.9,4.5864508]
[1761872306792,1.63672593,3839.0,3838.9,4.0191508]
[1761872307297,1.63672593,3839.0,3838.9,4.5864508]
[1761872308298,1.63672593,3839.0,3838.9,4.0191508]
[1761872308595,1.63672593,3839.0,3838.9,4.5864508]
[1761872309886,1.63672593,3839.0,3838.9,4.0191508]
[1761872310495,1.38812593,3839.0,3838.9,4.5864508]
[1761872312099,1.63672593,3839.0,3838.9,4.0191508]
[1761872312290,1.63672593,3839.0,3838.9,3.6137508]
[1761872312892,1.63672593,3839.0,3838.9,4.5864508]
[1761872313194,1.63672593,3839.0,3838.9,3.2106508]
[1761872313791,1.63672593,3839.0,3838.9,0.0028508]
[1761872314793,1.63672593,3839.0,3838.9,1.3786508]
[1761872316202,1.63672593,3839.0,3838.9,0.4059508]
[1761872316800,1.63672593,3839.0,3838.9,0.0028508]
[1761872317999,1.63672593,3839.0,3838.0,0.1008]
[1761872318000,0.6166,3838.4,3838.1,3.2078]
[1761872318200,1.3858,3838.2,3838.1,3.6109]
[1761872319008,1.3858,3838.2,3838.1,3.61285408]
[1761872319305,1.3858,3838.2,3838.1,4.18015408]
[1761872320905,1.3858,3838.2,3838.1,4.58555408]
[1761872322996,1.3858,3838.2,3838.1,0.00195408]
[1761872324203,3.2078,3838.3,3837.3,3.5844]
[1761872324204,1.3129,3837.4,3837.3,3.5844]
[1761872324398,1.3129,3837.4,3837.3,3.2078]
[1761872324399,10.7349,3837.4,3837.3,3.2078]
[1761872325011,10.7349,3837.4,3837.3,3.2097231]
[1761872325403,10.7349,3837.4,3837.3,0.0019231]
[1761872325596,0.9212,3836.6,3836.5,3.2078]
[1761872325798,10.7359,3836.6,3836.5,3.5844]
[1761872326603,10.7359,3836.6,3836.5,3.58699546]
[1761872327004,10.7359,3836.6,3836.5,3.21039546]
[1761872327205,10.7359,3836.6,3836.5,0.00259546]
[1761872327601,0.9212,3835.7,3835.6,3.5844]
[1761872327803,1.3129,3835.7,3835.6,3.5844]
[1761872328109,1.3129,3835.7,3835.6,3.2078]
[1761872328712,1.31514616,3835.7,3835.6,3.2100164]
[1761872329502,1.31514616,3835.7,3835.6,4.5207164]
[1761872329716,0.00224616,3835.7,3835.6,4.5207164]
[1761872329913,0.95904616,3835.7,3835.6,4.5207164]
[1761872330110,1.31514616,3835.7,3835.6,4.5207164]
[1761872332411,1.31514616,3835.7,3835.6,0.3788164]
[1761872332604,1.31514616,3835.7,3835.6,0.0022164]
[1761872332806,1.31514616,3835.7,3835.6,0.3788164]
[1761872334406,1.31514616,3835.7,3835.6,0.0022164]
[1761872341919,1.5402,3835.0,3834.9,3.5844]
[1761872342119,10.9652,3835.0,3834.9,3.5844]
[1761872342323,1.3129,3834.8,3834.7,0.402678]
[1761872342819,1.3129,3834.8,3834.7,0.4046119]
[1761872343206,1.3129,3834.8,3834.7,1.3387119]
[1761872343717,1.3129,3834.8,3834.7,0.0280119]
[1761872344826,1.3129,3834.1,3834.0,4.5185]
[1761872345119,10.7379,3834.1,3834.0,3.9637]
[1761872345714,10.7379,3834.1,3832.8,0.5548]
[1761872345715,0.5651,3834.0,3832.8,0.5548]
[1761872345918,3.2078,3833.4,3833.1,1.3107]
[1761872346118,1.3129,3833.8,3833.7,0.7559]
[1761872346317,6.3309,3833.8,3833.7,0.7559]
[1761872346716,6.3309,3833.8,3833.7,0.75928194]
[1761872347017,6.3309,3833.8,3833.7,0.37998194]
[1761872347219,6.3309,3833.8,3833.7,0.00338194]
[1761872347626,3.2078,3833.9,3833.7,0.00338194]
[1761872347627,3.2078,3833.9,3833.8,0.3766]
[1761872347820,9.425,3833.9,3833.8,1.3107]
[1761872348016,10.3818,3833.9,3833.8,1.3107]
[1761872348217,10.3818,3833.9,3833.7,0.00338194]
[1761872348218,1.3129,3833.8,3833.7,0.00338194]
[1761872348412,1.3129,3833.8,3833.7,0.37998194]
[1761872349320,1.3129,3833.8,3833.7,0.75928194]
[1761872349613,1.3129,3833.8,3833.7,0.00338194]
[1761872350524,1.3129,3833.8,3833.7,0.37998194]
[1761872350721,1.3129,3833.8,3833.7,0.00338194]
[1761872352114,10.7389,3833.8,3833.7,0.35188194]
[1761872352323,10.7389,3833.8,3833.7,0.70508194]
[1761872352715,10.7389,3833.8,3833.7,0.00338194]
[1761872353814,0.8546,3832.9,3832.8,0.3485]
[1761872354015,10.1297,3832.9,3832.8,0.3485]
[1761872354220,9.426,3832.9,3832.8,1.2122]
[1761872354422,0.8505,3833.7,3833.6,1.2122]
[1761872354620,10.6304,3833.7,3833.6,1.2122]
[1761872354818,10.63313212,3833.7,3833.6,0.70473347]
[1761872355024,10.63313212,3833.7,3833.6,0.35153347]
[1761872355418,10.63313212,3833.7,3833.6,0.00303347]
[1761872355919,1.20713212,3833.7,3833.6,0.00303347]
[1761872356223,10.63313212,3833.7,3833.6,0.69573347]
[1761872357621,1.20713212,3833.7,3833.6,0.69573347]
[1761872357811,0.00273212,3833.7,3833.6,1.21353347]
[1761872358222,0.00273212,3833.7,3833.6,9.21353347]
[1761872358428,12.6338,3834.4,3834.3,1.2105]
[1761872358629,9.426,3834.4,3834.3,1.2105]
[1761872358820,0.848,3834.6,3834.5,1.2105]
[1761872359017,0.848,3834.6,3834.5,0.8599]
[1761872359018,10.6096,3834.6,3834.5,0.8599]
[1761872359218,10.6096,3834.6,3834.5,0.6927]
[1761872359525,10.61267944,3834.6,3834.5,1.2105]
[1761872359719,9.75137944,3834.6,3834.5,1.2105]
[1761872360021,9.42807944,3834.6,3834.5,1.2705]
[1761872361322,9.42807944,3834.6,3834.5,1.47444628]
[1761872361726,0.848,3835.6,3835.5,0.6927]
[1761872362034,10.273,3835.6,3835.5,1.2105]
[1761872362727,10.2756472,3835.6,3835.5,1.2105]
[1761872363728,10.6112472,3835.6,3835.5,0.6927]
[1761872363936,10.6112472,3835.6,3835.5,0.3421]
[1761872364822,1.1836,3835.2,3835.1,40.8]
[1761872365132,1.1836,3834.9,3834.8,0.3421]
[1761872365729,0.1967,3835.0,3834.4,1.2105]
[1761872365730,0.3223,3834.5,3834.4,1.2105]
[1761872365926,1.3803,3834.5,3834.4,0.6927]
[1761872366331,1.3803,3834.5,3834.4,0.3421]
[1761872366921,1.058,3834.5,3834.3,3.2078]
[1761872367217,1.1836,3834.4,3834.3,3.5499]
[1761872367417,1.1836,3834.1,3834.0,0.3421]
[1761872367632,1.3803,3834.0,3833.9,3.2078]
[1761872367824,1.3803,3834.0,3833.9,3.5499]
[1761872368823,1.3803,3834.0,3833.9,3.2078]
[1761872371238,1.3803,3834.0,3833.9,4.0677]
[1761872371542,1.1836,3834.0,3833.9,4.4183]
[1761872371842,1.1836,3834.4,3834.3,0.3421]
[1761872372136,10.6056,3834.4,3834.3,0.3421]
[1761872372346,10.6056,3834.4,3834.3,0.6927]
[1761872372533,10.6046,3834.4,3834.3,1.2105]
[1761872374037,10.6046,3834.4,3834.3,0.3421]
[1761872374237,1.1836,3834.4,3834.3,0.3421]
[1761872374544,0.848,3834.0,3833.9,3.9005]
[1761872375244,0.848,3834.0,3833.9,4.4183]
[1761872376433,1.3803,3834.0,3833.9,4.4183]
[1761872377942,1.3803,3834.0,3833.9,3.2078]
[1761872379337,1.3803,3834.0,3833.6,0.00303347]
[1761872379338,1.1836,3833.7,3833.6,0.00303347]
[1761872380132,1.1836,3833.7,3833.6,0.34513347]
[1761872381737,1.1836,3833.7,3833.6,0.00303347]
[1761872382033,1.1836,3833.7,3833.6,0.32983347]
[1761872382636,1.1836,3833.7,3833.6,0.00303347]
[1761872387345,1.1836,3833.7,3832.5,1.90889927]
[1761872387346,1.1136,3832.3,3832.2,0.3268]
[1761872387653,10.5306,3832.3,3832.2,0.3268]
[1761872388242,10.53363888,3832.3,3832.2,0.32881278]
[1761872389043,0.00303888,3832.3,3832.2,1.10871278]
[1761872390056,0.812,3833.1,3833.0,1.1067]
[1761872390355,7.4216,3833.1,3833.0,1.1067]
[1761872390653,7.4216,3833.1,3833.0,0.6338]
[1761872391154,7.42448641,3833.1,3833.0,0.3268]
[1761872394355,1.1136,3832.9,3832.8,3.5346]
[1761872394567,1.1136,3832.9,3832.8,4.3145]
[1761872395055,7.12288641,3833.1,3833.0,1.1067]
[1761872395562,7.12288641,3833.1,3833.0,1.3094]
[1761872395754,7.12288641,3833.1,3833.0,1.1067]
[1761872396456,7.42448641,3833.1,3833.0,1.1067]
[1761872397650,7.42448641,3833.1,3833.0,0.6338]
[1761872397958,7.42448641,3833.1,3833.0,1.1067]
[1761872398158,0.6345,3832.9,3832.8,3.2078]
[1761872398361,1.1136,3832.9,3832.8,3.5346]
[1761872398660,1.1136,3832.9,3832.8,4.3145]
[1761872399159,0.3329,3832.9,3832.8,4.3145]
[1761872399766,0.00288641,3833.1,3833.0,1.3094]
[1761872399953,0.00288641,3833.1,3833.0,3.01699927]
[1761872400364,0.00288641,3833.1,3833.0,1.3094]
[1761872400656,0.81488641,3833.1,3833.0,1.3094]
[1761872400860,0.00288641,3833.1,3833.0,3.48667927]
[1761872401257,0.812,3834.4,3834.3,1.1067]
[1761872401860,12.5313,3834.8,3834.7,0.6338]
[1761872402066,0.3329,3834.5,3834.4,0.7997]
[1761872402251,0.8337431,3834.5,3834.4,1.1067]
[1761872402452,0.8337431,3834.5,3834.1,3.2078]
[1761872402453,1.3128431,3834.5,3834.1,3.2078]
[1761872402663,1.1136,3833.8,3833.7,3.5346]
[1761872402855,0.1972,3834.0,3833.3,0.92278035]
[1761872402856,1.1136,3833.4,3833.3,4.3145]
[1761872405955,1.1136,3833.4,3833.3,3.8416]
[1761872406464,1.1136,3833.4,3833.3,4.3145]
[1761872407463,1.1136,3833.4,3833.3,3.8416]
[1761872407864,1.1136,3833.4,3833.3,3.2078]
[1761872408071,10.5236,3833.4,3833.3,3.2078]
[1761872408570,10.5236,3833.4,3832.8,3.2078]
[1761872408571,1.1136,3832.9,3832.8,3.2078]
[1761872412267,1.1719,3832.5,3832.4,3.2078]
[1761872412565,10.5799,3832.5,3832.4,3.2078]
[1761872413470,0.9949,3832.3,3832.2,0.00201278]
[1761872416257,0.576,3831.3,3831.2,0.7309]
[1761872416470,0.9738,3831.2,3831.1,3.4829]
[1761872416662,0.9738,3831.2,3831.1,3.2078]
[1761872417275,0.00296191,3831.2,3831.1,4.16054739]
[1761872417967,0.97676191,3831.2,3831.1,4.16054739]
[1761872418163,0.97676191,3831.2,3831.1,0.00254739]
[1761872419970,4.18456191,3831.2,3831.1,0.00254739]
[1761872420158,13.29556191,3831.2,3831.1,0.00254739]
[1761872422067,13.59056191,3831.2,3831.1,0.00254739]
[1761872422275,0.2854,3830.0,3829.9,0.6717]
[1761872422574,0.2854,3830.0,3829.8,3.2078]
[1761872422575,0.9738,3829.9,3829.8,3.2078]
[1761872423371,0.9738,3829.9,3829.8,3.21037034]
[1761872425264,0.9738,3829.9,3829.8,3.48547034]
[1761872425465,10.3798,3829.9,3829.8,3.48547034]
[1761872426265,10.3798,3829.9,3829.8,3.76397034]
[1761872426975,10.3798,3829.9,3829.8,3.48547034]
[1761872427274,10.3798,3829.9,3829.8,3.76397034]
[1761872428373,10.3798,3829.9,3829.8,3.48547034]
[1761872428878,0.1614,3830.5,3830.1,0.9502]
[1761872428879,0.9738,3830.2,3830.1,0.9502]
[1761872429077,10.3788,3830.2,3830.1,0.9502]
[1761872429378,9.6904,3830.2,3830.1,0.9502]
[1761872430074,0.6912,3830.5,3830.4,0.9502]
[1761872430274,10.0962,3830.5,3830.4,4.158]
[1761872431177,0.6912,3830.5,3830.4,4.158]
[1761872431380,10.0962,3830.5,3830.4,4.158]
[1761872431678,10.5402,3830.5,3830.4,3.7614]
[1761872432081,10.5402,3830.5,3830.4,4.158]
[1761872432268,10.0952,3830.5,3830.4,4.158]
[1761872432475,0.6912,3831.0,3830.9,0.9502]
[1761872432671,10.5392,3831.0,3830.9,0.9502]
[1761872433082,10.5392,3831.0,3830.9,0.5536]
[1761872433381,10.5392,3831.0,3830.9,0.9502]
[1761872433675,10.3778,3831.0,3830.9,0.9502]
[1761872433879,0.00296191,3831.2,3831.1,0.9502]
[1761872434069,5.76416191,3831.2,3831.1,0.9502]
[1761872434274,0.2854,3830.4,3830.3,3.7614]
[1761872434582,0.6912,3830.6,3830.5,0.5536]
[1761872434778,0.6912,3830.6,3830.5,0.9502]
[1761872434983,0.568,3831.0,3830.9,0.9502]
[1761872435280,0.28836191,3831.2,3831.1,0.9502]
[1761872435468,9.97296191,3831.2,3831.1,0.5536]
[1761872435675,10.37876191,3831.2,3831.1,0.2751]
[1761872435973,0.9738,3830.9,3830.8,4.158]
[1761872436173,9.97296191,3831.2,3831.1,0.9502]
[1761872436580,9.97296191,3831.2,3830.8,3.2078]
[1761872436772,0.9738,3830.9,3830.8,3.4829]
[1761872438969,9.69036191,3831.2,3831.1,0.5536]
[1761872439275,9.97296191,3831.2,3831.1,0.5536]
[1761872439674,10.37876191,3831.2,3831.1,0.5536]
[1761872440175,10.37676191,3831.2,3831.1,0.9502]
[1761872440685,10.37676191,3831.2,3830.8,3.5782]
[1761872440874,0.8933,3830.9,3830.8,3.4956]
[1761872441078,0.8933,3830.9,3830.8,4.1102]
[1761872441279,9.92306191,3831.2,3831.1,0.9024]
[1761872441576,9.92306191,3831.2,3831.1,0.532]
[1761872441782,10.29626191,3831.2,3831.1,0.2878]
[1761872441986,10.29626191,3831.2,3830.8,3.2078]
[1761872442174,0.8933,3830.9,3830.8,4.1102]
[1761872443282,0.6402,3830.9,3830.8,4.1102]
[1761872443485,0.92543386,3832.0,3831.8,0.46982]
[1761872443784,2.32577293,3832.8,3832.2,0.9024]
[1761872443785,0.6402,3832.3,3832.2,0.9024]
[1761872443989,0.6402,3832.6,3832.5,0.9024]
[1761872444179,7.6092,3832.8,3832.7,0.9024]
[1761872444482,7.86496591,3832.8,3832.7,0.90561399]
[1761872444983,7.86496591,3832.8,3832.7,0.53521399]
[1761872445580,7.86496591,3832.8,3832.7,0.90561399]
[1761872446390,7.86496591,3832.8,3832.7,0.29101399]
[1761872446578,7.86496591,3832.8,3832.7,0.00321399]
[1761872452694,0.8933,3831.6,3831.5,3.7398]
[1761872453582,0.8933,3831.6,3831.5,3.74260304]
[1761872453782,9.392,3831.7,3831.6,0.9024]
[1761872454388,10.0322,3831.7,3831.6,0.9024]
[1761872454690,9.9121,3831.7,3831.6,0.3704]
[1761872454892,0.8933,3831.6,3831.5,4.11300304]
[1761872455789,10.0322,3831.7,3831.6,0.9024]
[1761872456290,9.392,3831.7,3831.6,0.9024]
[1761872456689,10.0322,3831.7,3831.6,0.9024]
[1761872457096,9.392,3831.7,3831.6,0.9024]
[1761872457583,10.2853,3831.7,3831.6,0.9024]
[1761872459695,10.0322,3831.7,3831.6,0.9024]
[1761872459893,0.8933,3832.1,3832.0,0.9024]
[1761872460197,10.2813,3832.1,3832.0,0.532]
[1761872460399,0.8933,3832.1,3832.0,0.9024]
[1761872460696,7.394,3832.1,3832.0,4.271]
[1761872460894,7.127,3832.1,3832.0,4.271]
[1761872461200,7.7672,3832.1,3832.0,4.1102]
[1761872463196,8.0203,3832.1,3832.0,3.4956]
[1761872463394,8.0203,3832.1,3831.9,3.2078]
[1761872463395,0.5399,3832.0,3831.9,3.2078]
[1761872463602,1.06,3832.0,3831.9,3.2078]
[1761872465400,0.8933,3831.6,3831.5,0.00280304]
[1761872465699,10.2783,3831.6,3831.5,0.00280304]
[1761872467503,0.6402,3832.2,3832.1,0.9024]
[1761872467806,0.8933,3832.2,3832.1,0.9024]
[1761872467999,0.8933,3832.2,3832.1,0.532]
[1761872468399,0.6402,3832.2,3832.1,0.9024]
[1761872468699,0.267,3832.2,3832.1,0.9024]
[1761872468895,10.0242,3832.4,3832.3,0.9024]
[1761872469094,10.0242,3832.4,3832.3,4.1102]
[1761872469394,10.2773,3832.4,3832.3,4.1102]
[1761872469596,10.2773,3832.4,3832.3,3.4956]
[1761872470904,10.2773,3832.4,3832.3,0.2878]
[1761872472104,0.5946,3832.0,3831.9,4.0927]
[1761872472402,0.9859,3832.0,3831.9,4.0927]
[1761872472591,9.8771,3832.4,3832.3,0.8334]
[1761872472792,9.8771,3832.4,3832.3,0.4834]
[1761872472994,0.4931,3832.1,3832.0,0.6067]
[1761872473307,0.8207,3831.6,3831.5,3.21060304]
[1761872473502,10.2017,3831.6,3831.5,3.21060304]
[1761872473805,10.2017,3831.6,3831.5,0.00280304]
[1761872480102,0.7866,3830.8,3830.7,3.2078]
[1761872480400,10.1656,3830.8,3830.7,3.2078]
[1761872480706,0.3274,3830.7,3830.2,3.2078]
[1761872480905,0.7866,3830.3,3830.2,3.2078]
[1761872481096,10.1656,3830.3,3830.2,3.43215531]
[1761872481403,10.1656,3830.3,3830.2,3.21105531]
[1761872481811,10.1656,3830.3,3830.2,0.00325531]
[1761872483601,0.3274,3830.9,3830.4,0.4381]
[1761872483809,0.7866,3830.8,3830.7,1.9309065]
[1761872484106,0.5521,3830.4,3830.3,0.7632]
[1761872484309,0.7866,3830.3,3830.2,0.00325531]
[1761872484703,10.1656,3830.3,3830.2,0.00325531]
[1761872485596,0.5521,3830.3,3830.2,0.44135531]
[1761872485804,9.9311,3830.3,3830.2,0.76645531]
[1761872486212,10.1656,3830.3,3830.2,0.44135531]
[1761872486602,0.7866,3830.9,3830.8,0.2211]
[1761872486810,0.7866,3830.9,3830.8,0.4381]
[1761872487113,10.1656,3830.9,3830.8,0.4381]
[1761872488413,10.1656,3830.9,3830.8,0.2211]
[1761872488909,0.5521,3830.6,3830.5,0.7632]
[1761872489512,0.1367,3831.0,3830.9,0.2211]
[1761872489513,0.3614,3831.0,3830.9,0.2211]
[1761872489810,0.2247,3830.4,3830.3,0.3251]
[1761872490014,9.6027,3830.4,3830.3,0.7632]
[1761872490212,0.7866,3830.9,3830.8,0.2211]
[1761872490424,0.1367,3830.5,3830.2,3.21105531]
[1761872490610,0.4592,3830.3,3830.2,3.97425531]
[1761872490915,0.5521,3830.5,3830.4,0.7632]
[1761872491311,6.3233,3830.5,3830.4,0.4381]
[1761872491712,6.3233,3830.5,3830.4,0.7632]
[1761872491911,6.3233,3830.5,3830.4,0.4381]
[1761872492106,6.3233,3830.5,3830.4,0.2211]
[1761872492313,0.7866,3830.3,3830.2,3.43215531]
[1761872493015,0.7866,3830.3,3830.2,3.21105531]
[1761872494924,0.7866,3830.3,3830.2,0.00325531]
[1761872495312,1.07334386,3831.0,3830.4,0.7632]
[1761872495313,0.1367,3831.0,3830.4,0.7632]
[1761872495621,0.5959,3830.5,3830.4,0.7632]
[1761872495815,0.5959,3830.5,3830.4,0.4381]
[1761872496014,0.9233,3830.5,3830.4,0.4381]
[1761872496211,0.7866,3830.3,3830.2,0.00325531]
[1761872496518,0.7866,3830.3,3830.2,0.76645531]
[1761872497320,0.5521,3830.3,3830.2,0.76645531]
[1761872497508,0.3614,3830.5,3830.4,0.2211]
[1761872497709,0.3614,3830.5,3830.4,0.7632]
[1761872497710,0.5521,3830.5,3830.4,0.7632]
[1761872499618,0.7866,3830.3,3830.2,0.22435531]
[1761872499808,0.7866,3830.3,3830.2,0.76645531]
[1761872500004,0.5521,3830.3,3830.2,0.76645531]
[1761872501419,0.7866,3830.3,3830.2,0.22435531]
[1761872501722,0.7866,3830.3,3830.2,0.23855531]
[1761872504327,0.7866,3830.3,3830.2,0.00325531]
[1761872511825,10.1616,3830.3,3830.2,0.00325531]
[1761872514727,0.5641,3830.3,3830.2,0.80285531]
[1761872514916,0.782,3830.3,3830.2,0.80285531]
[1761872515118,0.782,3830.3,3830.2,0.46715531]
[1761872518522,0.782,3830.3,3830.2,0.80285531]
[1761872518828,0.3734,3830.5,3830.4,0.7996]
[1761872519025,0.2367,3830.5,3830.4,1.8998307]
[1761872519328,0.564,3830.5,3830.4,1.8998307]
[1761872519729,0.7819,3830.5,3830.4,1.8998307]
[1761872520028,0.7819,3830.5,3830.2,0.23855531]
[1761872520029,0.7819,3830.3,3830.2,0.23855531]
[1761872521227,0.7819,3830.3,3830.2,0.46715531]
[1761872521427,0.7819,3830.3,3830.2,0.80285531]
[1761872521823,0.564,3830.5,3830.4,0.4639]
[1761872522530,0.93664386,3830.9,3830.7,0.7996]
[1761872522531,0.564,3830.8,3830.7,0.7996]
[1761872522731,9.0739,3830.8,3830.7,0.7996]
[1761872523134,9.0739,3830.8,3830.7,0.4639]
[1761872523430,9.0739,3830.8,3830.7,0.2353]
[1761872526231,0.7819,3830.6,3830.5,3.4431]
[1761872527230,0.7819,3830.6,3830.5,3.2078]
[1761872529139,0.7819,3830.6,3830.5,3.4431]
[1761872529727,0.7819,3830.6,3830.5,3.2078]
[1761872531632,0.7846,3830.3,3830.2,0.00325531]
[1761872531836,10.1516,3830.3,3830.2,0.00325531]
[1761872535039,10.1516,3830.3,3829.7,0.02611205]
[1761872535040,0.7846,3829.8,3829.7,3.23391205]
[1761872535336,10.1506,3829.8,3829.7,3.23391205]
[1761872536042,10.15394138,3829.8,3829.7,3.23722453]
[1761872536240,10.15394138,3829.8,3829.7,0.02942453]
[1761872543246,11.09058524,3829.8,3829.7,0.02942453]
[1761872544453,11.09058524,3829.8,3829.3,2.2078]
[1761872544454,0.8118,3829.4,3829.3,2.2078]
[1761872544747,10.1748,3829.4,3829.3,2.2078]
[1761872545341,10.1748,3829.4,3829.3,2.21042443]
[1761872546051,0.3461,3828.9,3828.3,3.64579755]
[1761872546240,0.3461,3828.9,3828.1,42.15113602]
[1761872546241,0.3461,3828.4,3828.1,1.35113602]
[1761872546552,9.9408,3828.3,3828.2,0.4664]
[1761872546753,9.9408,3828.3,3828.2,0.8136]
[1761872547051,10.1738,3828.3,3828.2,0.81643868]
[1761872547449,0.5788,3828.7,3828.6,0.8136]
[1761872547642,0.2327,3829.0,3828.9,0.8136]
[1761872547949,6.9337,3829.0,3828.9,2.16473602]
[1761872548148,7.2798,3829.0,3828.9,0.8136]
[1761872548447,7.654,3829.0,3828.9,0.8136]
[1761872548651,7.654,3829.0,3828.9,0.4664]
[1761872548847,7.654,3829.0,3828.9,0.8136]
[1761872550048,7.654,3829.0,3828.9,0.4664]
[1761872550249,0.8118,3828.7,3828.6,0.8136]
[1761872550452,0.8118,3828.7,3828.6,0.4664]
[1761872551349,0.8118,3828.7,3828.3,3.555]
[1761872551549,0.8118,3828.4,3828.3,4.0214]
[1761872551850,9.5937,3828.6,3828.5,0.8136]
[1761872552241,10.1728,3828.6,3828.5,0.8136]
[1761872552444,0.8118,3828.4,3828.3,3.2078]
[1761872552745,0.1412,3829.0,3828.3,3.2078]
[1761872552746,0.6069,3829.0,3828.9,0.2305]
[1761872552950,9.9669,3829.0,3828.9,0.4664]
[1761872553137,9.9669,3829.0,3828.9,0.2305]
[1761872553341,0.953,3829.0,3828.9,0.2305]
[1761872553645,9.5927,3829.0,3828.9,0.8136]
[1761872553951,9.9388,3829.0,3828.9,0.8136]
[1761872555546,3.349,3829.5,3828.7,4.55893602]
[1761872555547,0.5788,3829.4,3829.3,0.8136]
[1761872555752,9.9378,3829.4,3829.3,2.16473602]
[1761872557846,0.8118,3829.4,3829.3,0.8136]
[1761872559856,0.8118,3829.4,3829.3,0.4664]
[1761872560651,0.4414,3829.2,3829.1,3.2078]
[1761872560852,0.7635,3828.9,3828.8,0.2284]
[1761872561160,10.1205,3828.9,3828.8,0.2284]
[1761872561454,10.1205,3828.9,3828.8,0.7978]
[1761872561657,9.357,3828.9,3828.8,0.7978]
[1761872561857,0.542,3829.2,3829.1,0.7978]
[1761872562061,9.899,3829.2,3829.1,2.14893602]
[1761872562460,10.1205,3829.2,3829.1,0.4448]
[1761872562665,10.1205,3829.2,3829.1,0.2284]
[1761872563263,0.9049,3829.0,3828.9,3.4362]
[1761872563463,0.9049,3829.0,3828.9,3.2078]
[1761872563668,0.2199,3828.6,3828.5,3.6526]
[1761872563960,0.7635,3828.6,3828.5,4.0056]
[1761872565766,0.7635,3828.6,3828.5,3.2078]
[1761872566066,0.7635,3828.6,3828.5,3.6526]
[1761872566256,0.7635,3828.6,3828.5,0.2284]
[1761872566453,0.7635,3828.3,3828.2,1.7987747]
[1761872566658,10.1175,3828.3,3828.2,0.44763868]
[1761872567467,6.94686725,3828.3,3828.2,0.80063868]
[1761872567666,0.1414,3829.0,3828.7,0.4702]
[1761872567860,0.1414,3829.0,3828.9,5.94617134]
[1761872568059,0.5828,3829.0,3828.9,4.55893602]
[1761872568468,0.5828,3829.0,3828.9,3.2078]
[1761872568654,0.5828,3829.0,3828.9,4.55893602]
[1761872568968,0.5828,3829.0,3828.9,5.48856379]
[1761872569764,0.9049,3829.0,3828.9,5.48856379]
[1761872571258,0.9049,3829.0,3828.9,4.55893602]
[1761872571461,0.9049,3829.0,3828.9,3.2078]
[1761872571769,0.5828,3829.0,3828.9,3.2078]
[1761872572067,0.9049,3829.0,3828.9,3.2078]
[1761872572461,0.6834,3829.0,3828.9,3.2078]
[1761872574374,0.9049,3829.0,3828.9,3.2078]
[1761872574560,0.9049,3829.0,3828.9,3.67798]
[1761872574766,0.9049,3829.0,3828.9,3.2078]
[1761872576274,0.7635,3828.9,3828.8,1.35113602]
[1761872577856,0.7635,3828.9,3828.6,3.2078]
[1761872578061,0.542,3828.7,3828.6,3.2078]
[1761872578262,0.7635,3828.7,3828.6,3.2078]
[1761872582567,0.7635,3828.3,3828.2,0.93246645]
[1761872584172,0.7635,3828.3,3828.2,0.00283868]
[1761872586275,9.4884,3828.5,3827.6,3.67813]
[1761872586276,0.7635,3827.7,3827.6,3.2078]
[1761872587065,0.2215,3827.7,3827.6,3.2078]
[1761872587268,0.4414,3827.7,3827.6,3.209732]
[1761872587783,0.7635,3827.7,3827.6,3.209732]
[1761872589676,0.1414,3828.0,3827.9,0.4703]
[1761872589880,0.1414,3828.0,3827.9,1.82143602]
[1761872590273,0.4635,3828.0,3827.9,1.82143602]
[1761872591380,0.6834,3828.0,3827.9,1.82143602]
[1761872591680,0.4635,3828.0,3827.9,1.82143602]
[1761872592173,0.3593,3828.4,3828.0,1.17572]
[1761872592373,0.3593,3828.4,3828.3,4.55893602]
[1761872592876,0.3593,3828.4,3828.3,45.35893602]
[1761872593575,0.5007,3829.0,3828.9,0.47018]
[1761872593785,0.5007,3829.0,3828.9,1.82131602]
[1761872594978,0.5007,3829.0,3828.9,2.75094379]
[1761872595180,0.5007,3829.0,3828.9,1.82131602]
[1761872595383,0.5007,3829.0,3828.9,2.75094379]
[1761872596074,0.1414,3829.0,3828.9,2.75094379]
[1761872597276,0.1414,3829.0,3828.9,3.60071977]
[1761872597682,0.49,3829.0,3828.9,3.60071977]
[1761872598481,0.1414,3829.0,3828.9,3.60071977]
[1761872598681,0.49,3829.0,3828.9,2.50026377]
[1761872598981,0.49,3829.0,3828.9,1.570636]
[1761872599575,0.3486,3829.7,3829.6,0.47009]
[1761872599775,0.3486,3829.7,3829.6,3.67789]
[1761872600179,0.3486,3829.7,3829.6,44.47789]
[1761872602484,0.00334138,3829.8,3829.6,46.50614084]
[1761872602689,0.00334138,3829.8,3829.7,1.100456]
[1761872603095,0.3486,3830.4,3829.7,1.178856]
[1761872603394,0.1377,3830.5,3830.3,4.778266]
[1761872603590,0.1377,3830.5,3830.3,14.115266]
[1761872604291,0.14012923,3830.5,3830.3,14.11770734]
[1761872605483,0.14012923,3830.5,3830.3,14.32135183]
[1761872605692,0.14012923,3830.5,3830.4,40.8]
[1761872606992,0.48872923,3830.5,3830.4,40.8]